fUST/lending_fUST_20250130
["ID","MTS","AMOUNT","RATE_DAILY","PERIOD"]
[350947877,1738231836525,-507.92833322,0.00016473,2]
[350947878,1738231836535,-259.33124282,0.00016473,2]
[350947879,1738231836545,-507.53954419,0.00016473,2]
[350947880,1738231836555,-500.0,0.00016473,2]
[350947881,1738231836565,-501.53434199,0.00016473,2]
[350947882,1738231836574,-500.0,0.00016473,2]
[350947883,1738231836583,-160.45648094,0.00016473,2]
[350947884,1738231836592,-329.85531478,0.00016475,2]
[350947885,1738231836602,-152.0,0.00016475,2]
[350947886,1738231836612,-151.0,0.00016478,2]
[350947887,1738231836621,-500.0,0.00016492,2]
[350947888,1738231836630,-4998.26341888,0.000165,2]
[350947889,1738231836640,-262.782822,0.000165,2]
[350947890,1738231836649,-151.0,0.000165,2]
[350947891,1738231836658,-151.0,0.000165,2]
[350947892,1738231836667,-151.0,0.000165,2]
[350947893,1738231836676,-151.0,0.000165,2]
[350947894,1738231836685,-151.0,0.000165,2]
[350947895,1738231836694,-151.0,0.000165,2]
[350947896,1738231836703,-151.0,0.000165,2]
[350947897,1738231836712,-2257.85016591,0.00016569,2]
[350947898,1738231836722,-151.0,0.00016569,2]
[350947899,1738231836731,-165.916806,0.00016569,2]
[350947900,1738231836740,-152.059088,0.00016569,2]
[350947901,1738231836748,-500.0,0.00016574,2]
[350947902,1738231836758,-500.0,0.00016574,2]
[350947903,1738231836768,-500.0,0.00016574,2]
[350947904,1738231836777,-160.0,0.00016574,2]
[350947905,1738231836786,-923.75,0.00016574,2]
[350947906,1738231836795,-923.75,0.00016574,2]
[350947907,1738231836805,-923.75,0.00016574,2]
[350947908,1738231836814,-923.75,0.00016574,2]
[350947909,1738231836826,-500.0,0.00016574,2]
[350947910,1738231836835,-461.52354777,0.00016574,2]
[350947911,1738231836844,-165.916806,0.00016575,2]
[350947912,1738231836854,-500.0,0.00016575,2]
[350947913,1738231836863,-500.0,0.00016575,2]
[350947914,1738231836872,-500.0,0.00016575,2]
[350947915,1738231836881,-151.0,0.00016575,2]
[350947916,1738231836890,-151.0,0.00016575,2]
[350947917,1738231836901,-500.0,0.00016575,2]
[350947918,1738231836911,-500.0,0.00016575,2]
[350947919,1738231836920,-500.0,0.00016575,2]
[350947920,1738231836929,-500.0,0.00016575,2]
[350947921,1738231836939,-500.0,0.00016575,2]
[350947922,1738231836948,-500.0,0.00016575,2]
[350947923,1738231836957,-500.0,0.00016575,2]
[350947924,1738231836967,-500.0,0.00016575,2]
[350947925,1738231836977,-500.0,0.00016575,2]
[350947926,1738231836986,-500.0,0.00016575,2]
[350947927,1738231836996,-500.0,0.00016575,2]
[350947928,1738231837005,-500.0,0.00016575,2]
[350947929,1738231837016,-500.0,0.00016575,2]
[350947930,1738231837026,-500.0,0.00016575,2]
[350947931,1738231837037,-500.0,0.00016575,2]
[350947932,1738231837046,-500.0,0.00016575,2]
[350947933,1738231837055,-500.0,0.00016575,2]
[350947934,1738231837066,-500.0,0.00016575,2]
[350947935,1738231837076,-502.82934761,0.00016575,2]
[350947936,1738231837086,-500.0,0.00016575,2]
[350947937,1738231837095,-500.0,0.00016575,2]
[350947938,1738231837104,-500.0,0.00016575,2]
[350947939,1738231837113,-524.70315493,0.00016575,2]
[350947940,1738231837124,-500.0,0.00016575,2]
[350947941,1738231837134,-500.0,0.00016575,2]
[350947942,1738231837144,-532.30693044,0.00016575,2]
[350947943,1738231837153,-477.39,0.00016575,2]
[350947944,1738231837163,-500.0,0.00016575,2]
[350947945,1738231837172,-500.0,0.00016575,2]
[350947946,1738231837182,-500.0,0.00016575,2]
[350947947,1738231837191,-500.0,0.00016575,2]
[350947948,1738231837201,-500.0,0.00016575,2]
[350947949,1738231837210,-500.0,0.00016575,2]
[350947950,1738231837219,-500.0,0.00016575,2]
[350947951,1738231837232,-513.22309474,0.00016575,2]
[350947952,1738231837243,-500.0,0.00016575,2]
[350947953,1738231837254,-500.0,0.00016575,2]
[350947954,1738231837265,-500.0,0.00016575,2]
[350947955,1738231837274,-151.0,0.00016575,2]
[350947956,1738231837284,-500.0,0.00016575,2]
[350947957,1738231837293,-157.736586,0.00016575,2]
[350947958,1738231837303,-500.0,0.00016575,2]
[350947959,1738231837320,-500.0,0.00016575,2]
[350947960,1738231837332,-151.0,0.00016575,2]
[350947961,1738231837342,-151.0,0.00016575,2]
[350947962,1738231837352,-151.0,0.00016575,2]
[350947963,1738231837362,-201.469227,0.00016575,2]
[350947964,1738231837372,-500.0,0.00016575,2]
[350947965,1738231837383,-831.59,0.00016575,2]
[350947966,1738231837392,-500.0,0.00016575,2]
[350947967,1738231837402,-151.0,0.00016575,2]
[350947968,1738231837412,-151.0,0.00016575,2]
[350947969,1738231837423,-249.206842,0.00016575,2]
[350947970,1738231837433,-500.0,0.00016575,2]
[350947971,1738231837444,-515.2775757,0.00016575,2]
[350947972,1738231837453,-500.0,0.00016575,2]
[350947973,1738231837464,-500.0,0.00016575,2]
[350947974,1738231837474,-500.0,0.00016575,2]
[350947975,1738231837485,-512.26096092,0.00016575,2]
[350947976,1738231837494,-513.08212287,0.00016575,2]
[350947977,1738231837504,-500.0,0.00016575,2]
[350947978,1738231837513,-836.07,0.00016575,2]
[350947979,1738231837522,-500.0,0.00016575,2]
[350947980,1738231837532,-500.0,0.00016575,2]
[350947981,1738231837542,-500.0,0.00016575,2]
[350947982,1738231837553,-500.0,0.00016575,2]
[350947983,1738231837563,-500.0,0.00016575,2]
[350947984,1738231837573,-500.0,0.00016575,2]
[350947985,1738231837584,-500.0,0.00016575,2]
[350947986,1738231837594,-500.0,0.00016575,2]
[350947987,1738231837603,-500.0,0.00016575,2]
[350947988,1738231837613,-500.0,0.00016575,2]
[350947989,1738231837624,-151.0,0.00016575,2]
[350947990,1738231837636,-2465.1,0.00016575,2]
[350947991,1738231837646,-151.0,0.00016575,2]
[350947992,1738231837655,-151.0,0.00016575,2]
[350947993,1738231837666,-500.0,0.00016575,2]
[350947994,1738231837675,-994.48,0.00016575,2]
[350947995,1738231837685,-500.0,0.00016575,2]
[350947996,1738231837694,-500.0,0.00016575,2]
[350947997,1738231837703,-500.0,0.00016575,2]
[350947998,1738231837713,-500.0,0.00016575,2]
[350947999,1738231837723,-500.0,0.00016575,2]
[350948000,1738231837734,-500.0,0.00016575,2]
[350948001,1738231837745,-500.0,0.00016575,2]
[350948002,1738231837754,-500.0,0.00016575,2]
[350948003,1738231837764,-500.0,0.00016575,2]
[350948004,1738231837773,-500.0,0.00016575,2]
[350948005,1738231837784,-751.06,0.00016575,2]
[350948006,1738231837794,-500.0,0.00016575,2]
[350948007,1738231837803,-500.0,0.00016575,2]
[350948008,1738231837813,-500.0,0.00016575,2]
[350948009,1738231837825,-500.0,0.00016575,2]
[350948010,1738231837841,-500.0,0.00016575,2]
[350948011,1738231837851,-500.0,0.00016575,2]
[350948012,1738231837861,-151.0,0.00016575,2]
[350948013,1738231837871,-151.0,0.00016575,2]
[350948014,1738231837881,-151.0,0.00016575,2]
[350948015,1738231837890,-151.0,0.00016575,2]
[350948016,1738231837900,-259.016,0.00016575,2]
[350948017,1738231837909,-500.0,0.00016575,2]
[350948018,1738231837919,-500.0,0.00016575,2]
[350948019,1738231837928,-500.0,0.00016575,2]
[350948020,1738231837937,-1377.99,0.00016575,2]
[350948021,1738231837946,-500.0,0.00016575,2]
[350948022,1738231837956,-500.0,0.00016575,2]
[350948023,1738231837965,-500.0,0.00016575,2]
[350948024,1738231837974,-633.36,0.00016575,2]
[350948025,1738231837983,-619.8,0.00016575,2]
[350948026,1738231837993,-500.0,0.00016575,2]
[350948027,1738231838002,-500.0,0.00016575,2]
[350948028,1738231838012,-500.0,0.00016575,2]
[350948029,1738231838021,-500.0,0.00016575,2]
[350948030,1738231838031,-509.74452317,0.00016575,2]
[350948031,1738231838040,-504.38163522,0.00016575,2]
[350948032,1738231838051,-500.0,0.00016575,2]
[350948033,1738231838060,-500.0,0.00016575,2]
[350948034,1738231838069,-498.79789491,0.00016575,2]
[350948035,1738231838079,-1852.67,0.00016575,2]
[350948036,1738231838088,-500.0,0.00016575,2]
[350948037,1738231838098,-500.0,0.00016575,2]
[350948038,1738231838107,-720.48,0.00016575,2]
[350948039,1738231838116,-500.0,0.00016575,2]
[350948040,1738231838126,-500.0,0.00016575,2]
[350948041,1738231838135,-500.0,0.00016575,2]
[350948042,1738231838144,-500.0,0.00016575,2]
[350948043,1738231838153,-500.0,0.00016575,2]
[350948044,1738231838163,-500.0,0.00016575,2]
[350948045,1738231838173,-244.7724828,0.00016575,2]
[350948046,1738231838183,-500.0,0.00016575,2]
[350948047,1738231838192,-500.0,0.00016575,2]
[350948048,1738231838202,-511.48769953,0.00016575,2]
[350948049,1738231838211,-500.0,0.00016575,2]
[350948050,1738231838221,-500.0,0.00016575,2]
[350948051,1738231838230,-547.19,0.00016575,2]
[350948052,1738231838239,-2141.85614994,0.00016575,2]
[350948053,1738231838476,-488.87395559,0.00016575,2]
[350948054,1738231838676,-201.90177402,0.00016438,2]
[350948055,1738231838686,-4413.24989447,0.00016575,2]
[350948056,1738231838695,-500.0,0.00016575,2]
[350948057,1738231838705,-588.46,0.00016575,2]
[350948058,1738231838715,-500.0,0.00016575,2]
[350948059,1738231838726,-787.72,0.000166,2]
[350948060,1738231838736,-151.0,0.000166,2]
[350948061,1738231838747,-354.3389743,0.000166,2]
[350948062,1738231838756,-354.3389743,0.000166,2]
[350948063,1738231838767,-354.3389743,0.000166,2]
[350948064,1738231838778,-395.0,0.00016612,2]
[350948065,1738231838788,-500.0,0.00016646,2]
[350948066,1738231838797,-151.0,0.00016699,2]
[350948067,1738231838808,-165.916806,0.000167,2]
[350948068,1738231838817,-354.3389743,0.000167,2]
[350948069,1738231838831,-153.0,0.000167,2]
[350948070,1738231838840,-354.3389743,0.000167,2]
[350948071,1738231838850,-354.3389743,0.000167,2]
[350948072,1738231838860,-354.3389743,0.000167,2]
[350948073,1738231838870,-351.3629465,0.000167,2]
[350948074,1738231838879,-466.494612,0.000167,6]
[350948075,1738231838888,-33653.52148132,0.00016709,5]
[350948093,1738231839991,-420.0812438,0.00016709,5]
[350948117,1738231843511,-500.0,0.00016438,2]
[350948118,1738231843521,-2259.67,0.00016438,2]
[350948119,1738231843530,-500.0,0.00016575,2]
[350948120,1738231843539,-2259.67,0.00016575,2]
[350948121,1738231843548,-16571.80383957,0.00016709,5]
[350948122,1738231843557,-206.38415798,0.00016709,2]
[350948123,1738231843566,-923.75,0.0001671,2]
[350948124,1738231843577,-151.0,0.0001671,2]
[350948125,1738231843587,-151.0,0.0001671,2]
[350948126,1738231843597,-151.0,0.0001671,2]
[350948127,1738231843606,-151.0,0.0001671,2]
[350948128,1738231843615,-26167.56156481,0.00016711,5]
[350948129,1738231843624,-151.0,0.00016711,2]
[350948130,1738231843633,-151.0,0.00016711,2]
[350948131,1738231843647,-500.0,0.00016711,2]
[350948132,1738231843659,-500.0,0.00016711,2]
[350948133,1738231843669,-923.75,0.00016711,2]
[350948134,1738231843680,-923.75,0.00016711,2]
[350948135,1738231843690,-923.75,0.00016711,2]
[350948136,1738231843700,-923.75,0.00016711,2]
[350948137,1738231843710,-923.75,0.00016711,2]
[350948138,1738231843719,-923.75,0.00016711,2]
[350948139,1738231843728,-923.75,0.00016711,2]
[350948140,1738231843738,-923.92,0.00016711,2]
[350948141,1738231843747,-165.916806,0.00016712,2]
[350948142,1738231843756,-500.0,0.00016712,2]
[350948143,1738231843765,-500.0,0.00016712,2]
[350948144,1738231843774,-500.0,0.00016712,2]
[350948145,1738231843783,-151.0,0.00016712,2]
[350948146,1738231843792,-500.0,0.00016712,2]
[350948147,1738231843802,-500.0,0.00016712,2]
[350948148,1738231843811,-624.11919924,0.00016712,2]
[350948149,1738231843820,-500.0,0.00016712,2]
[350948150,1738231843833,-500.0,0.00016712,2]
[350948151,1738231843842,-500.0,0.00016712,2]
[350948152,1738231843852,-500.0,0.00016712,2]
[350948153,1738231843863,-500.0,0.00016712,2]
[350948154,1738231843873,-500.0,0.00016712,2]
[350948155,1738231843882,-500.0,0.00016712,2]
[350948156,1738231843891,-500.0,0.00016712,2]
[350948157,1738231843901,-500.0,0.00016712,2]
[350948158,1738231843910,-500.0,0.00016712,2]
[350948159,1738231843920,-500.0,0.00016712,2]
[350948160,1738231843929,-500.0,0.00016712,2]
[350948161,1738231843938,-500.0,0.00016712,2]
[350948162,1738231843948,-504.49856839,0.00016712,2]
[350948163,1738231843958,-500.0,0.00016712,2]
[350948164,1738231843968,-500.0,0.00016712,2]
[350948165,1738231843977,-500.0,0.00016712,2]
[350948166,1738231843987,-500.0,0.00016712,2]
[350948167,1738231843996,-500.0,0.00016712,2]
[350948168,1738231844005,-836.07,0.00016712,2]
[350948169,1738231844015,-500.0,0.00016712,2]
[350948170,1738231844024,-500.0,0.00016712,2]
[350948171,1738231844033,-500.0,0.00016712,2]
[350948172,1738231844043,-500.0,0.00016712,2]
[350948173,1738231844054,-500.0,0.00016712,2]
[350948174,1738231844063,-500.0,0.00016712,2]
[350948175,1738231844072,-500.0,0.00016712,2]
[350948176,1738231844081,-994.48,0.00016712,2]
[350948178,1738231844091,-510.47655231,0.00016712,2]
[350948179,1738231844100,-500.0,0.00016712,2]
[350948180,1738231844110,-500.0,0.00016712,2]
[350948181,1738231844119,-500.0,0.00016712,2]
[350948182,1738231844129,-500.0,0.00016712,2]
[350948183,1738231844138,-751.06,0.00016712,2]
[350948184,1738231844147,-500.0,0.00016712,2]
[350948185,1738231844157,-500.0,0.00016712,2]
[350948186,1738231844166,-500.0,0.00016712,2]
[350948187,1738231844176,-500.0,0.00016712,2]
[350948188,1738231844185,-500.0,0.00016712,2]
[350948189,1738231844194,-322.09446542,0.00016712,2]
[350948190,1738231844204,-1377.99,0.00016712,2]
[350948191,1738231844213,-500.0,0.00016712,2]
[350948192,1738231844223,-500.0,0.00016712,2]
[350948193,1738231844233,-633.36,0.00016712,2]
[350948194,1738231844242,-619.8,0.00016712,2]
[350948195,1738231844252,-500.0,0.00016712,2]
[350948196,1738231844261,-500.0,0.00016712,2]
[350948197,1738231844271,-500.0,0.00016712,2]
[350948198,1738231844281,-1852.67,0.00016712,2]
[350948199,1738231844290,-720.48,0.00016712,2]
[350948200,1738231844299,-500.0,0.00016712,2]
[350948201,1738231844310,-500.0,0.00016712,2]
[350948202,1738231844319,-500.0,0.00016712,2]
[350948203,1738231844329,-500.0,0.00016712,2]
[350948204,1738231844338,-547.19,0.00016712,2]
[350948205,1738231844348,-7043.98,0.00016712,2]
[350948206,1738231844358,-500.0,0.00016712,2]
[350948207,1738231844367,-588.46,0.00016712,2]
[350948208,1738231844376,-500.0,0.00016712,2]
[350948209,1738231844388,-2259.67,0.00016712,2]
[350948210,1738231844398,-500.0,0.00016737,2]
[350948211,1738231844407,-151.0,0.00016738,2]
[350948212,1738231844417,-151.0,0.000168,2]
[350948213,1738231844426,-500.0,0.00016848,2]
[350948214,1738231844435,-500.0,0.00016848,2]
[350948215,1738231844445,-165.916806,0.00016849,2]
[350948216,1738231844455,-165.916806,0.00016849,2]
[350948217,1738231844464,-566.52731293,0.00016849,2]
[350948218,1738231844474,-500.0,0.00016849,2]
[350948219,1738231844483,-500.0,0.00016849,2]
[350948220,1738231844493,-151.0,0.00016849,2]
[350948221,1738231844504,-500.0,0.00016849,2]
[350948222,1738231844514,-500.0,0.00016849,2]
[350948223,1738231844524,-500.0,0.00016849,2]
[350948224,1738231844536,-500.0,0.00016849,2]
[350948225,1738231844547,-500.0,0.00016849,2]
[350948226,1738231844558,-500.0,0.00016849,2]
[350948227,1738231844567,-500.0,0.00016849,2]
[350948228,1738231844577,-500.0,0.00016849,2]
[350948229,1738231844586,-500.0,0.00016849,2]
[350948230,1738231844596,-500.0,0.00016849,2]
[350948231,1738231844605,-500.0,0.00016849,2]
[350948232,1738231844614,-500.0,0.00016849,2]
[350948233,1738231844623,-500.0,0.00016849,2]
[350948234,1738231844633,-500.0,0.00016849,2]
[350948235,1738231844642,-500.0,0.00016849,2]
[350948236,1738231844651,-500.0,0.00016849,2]
[350948237,1738231844660,-500.0,0.00016849,2]
[350948238,1738231844669,-500.0,0.00016849,2]
[350948239,1738231844679,-836.07,0.00016849,2]
[350948240,1738231844688,-474.4673915,0.00016849,2]
[350948241,1738231844698,-500.0,0.00016849,2]
[350948242,1738231844707,-500.0,0.00016849,2]
[350948243,1738231844717,-500.0,0.00016849,2]
[350948244,1738231844732,-500.0,0.00016849,2]
[350948245,1738231844742,-500.0,0.00016849,2]
[350948246,1738231844854,-500.0,0.00016849,2]
[350948247,1738231844864,-994.48,0.00016849,2]
[350948248,1738231844874,-500.0,0.00016849,2]
[350948249,1738231844883,-500.0,0.00016849,2]
[350948250,1738231844892,-500.0,0.00016849,2]
[350948251,1738231844903,-500.0,0.00016849,2]
[350948252,1738231844913,-751.06,0.00016849,2]
[350948253,1738231844922,-500.0,0.00016849,2]
[350948254,1738231844931,-500.0,0.00016849,2]
[350948255,1738231844940,-500.0,0.00016849,2]
[350948256,1738231844949,-500.0,0.00016849,2]
[350948257,1738231844958,-500.0,0.00016849,2]
[350948258,1738231844968,-1377.99,0.00016849,2]
[350948259,1738231844977,-500.0,0.00016849,2]
[350948260,1738231844986,-500.0,0.00016849,2]
[350948261,1738231844996,-633.36,0.00016849,2]
[350948262,1738231845006,-619.8,0.00016849,2]
[350948263,1738231845015,-500.0,0.00016849,2]
[350948264,1738231845024,-500.0,0.00016849,2]
[350948265,1738231845033,-500.0,0.00016849,2]
[350948266,1738231845043,-1852.67,0.00016849,2]
[350948267,1738231845053,-720.48,0.00016849,2]
[350948268,1738231845063,-500.0,0.00016849,2]
[350948269,1738231845072,-500.0,0.00016849,2]
[350948270,1738231845081,-500.0,0.00016849,2]
[350948271,1738231845090,-500.0,0.00016849,2]
[350948272,1738231845099,-547.19,0.00016849,2]
[350948273,1738231845108,-7043.98,0.00016849,2]
[350948274,1738231845117,-500.0,0.00016849,2]
[350948275,1738231845126,-588.46,0.00016849,2]
[350948276,1738231845136,-500.0,0.00016849,2]
[350948277,1738231845145,-2259.67,0.00016849,2]
[350948278,1738231845154,-151.0,0.00016958,2]
[350948279,1738231845164,-165.916806,0.00016986,2]
[350948280,1738231845173,-165.916806,0.00016986,2]
[350948281,1738231845182,-500.0,0.00016986,2]
[350948282,1738231845191,-618.33025769,0.00016986,2]
[350948283,1738231845201,-500.0,0.00016986,2]
[350948284,1738231845211,-500.0,0.00016986,2]
[350948285,1738231845220,-500.0,0.00016986,2]
[350948286,1738231845230,-500.0,0.00016986,2]
[350948287,1738231845239,-500.0,0.00016986,2]
[350948288,1738231845248,-524.87213326,0.00016986,2]
[350948289,1738231845257,-500.0,0.00016986,2]
[350948290,1738231845267,-500.0,0.00016986,2]
[350948291,1738231845276,-500.0,0.00016986,2]
[350948293,1738231845285,-500.0,0.00016986,2]
[350948294,1738231845294,-500.0,0.00016986,2]
[350948296,1738231845305,-500.0,0.00016986,2]
[350948298,1738231845314,-500.0,0.00016986,2]
[350948300,1738231845324,-500.0,0.00016986,2]
[350948302,1738231845333,-500.0,0.00016986,2]
[350948304,1738231845343,-500.0,0.00016986,2]
[350948306,1738231845352,-500.0,0.00016986,2]
[350948308,1738231845362,-836.07,0.00016986,2]
[350948309,1738231845372,-500.0,0.00016986,2]
[350948310,1738231845381,-500.0,0.00016986,2]
[350948311,1738231845390,-500.0,0.00016986,2]
[350948312,1738231845399,-500.0,0.00016986,2]
[350948313,1738231845408,-500.0,0.00016986,2]
[350948314,1738231845417,-500.0,0.00016986,2]
[350948316,1738231845427,-994.48,0.00016986,2]
[350948317,1738231845435,-500.0,0.00016986,2]
[350948319,1738231845444,-500.0,0.00016986,2]
[350948320,1738231845454,-631.54762995,0.00016986,2]
[350948321,1738231845463,-500.0,0.00016986,2]
[350948322,1738231845472,-751.06,0.00016986,2]
[350948323,1738231845482,-500.0,0.00016986,2]
[350948324,1738231845491,-500.0,0.00016986,2]
[350948325,1738231845500,-500.0,0.00016986,2]
[350948326,1738231845509,-500.0,0.00016986,2]
[350948327,1738231845518,-500.0,0.00016986,2]
[350948328,1738231845526,-1377.99,0.00016986,2]
[350948329,1738231845535,-500.0,0.00016986,2]
[350948330,1738231845544,-500.0,0.00016986,2]
[350948331,1738231845555,-633.36,0.00016986,2]
[350948332,1738231845563,-619.8,0.00016986,2]
[350948333,1738231845573,-500.0,0.00016986,2]
[350948334,1738231845582,-500.0,0.00016986,2]
[350948335,1738231845591,-500.0,0.00016986,2]
[350948336,1738231845599,-1852.67,0.00016986,2]
[350948338,1738231845609,-720.48,0.00016986,2]
[350948340,1738231845618,-500.0,0.00016986,2]
[350948342,1738231845627,-500.0,0.00016986,2]
[350948343,1738231845636,-500.0,0.00016986,2]
[350948345,1738231845645,-500.0,0.00016986,2]
[350948347,1738231845654,-547.19,0.00016986,2]
[350948349,1738231845663,-7043.98,0.00016986,2]
[350948351,1738231845673,-500.0,0.00016986,2]
[350948353,1738231845681,-588.46,0.00016986,2]
[350948355,1738231845690,-4998.20624278,0.00017,2]
[350948357,1738231845699,-483.33026041,0.00017011,2]
[350948359,1738231845708,-502.7555163,0.00017021,2]
[350948361,1738231845717,-1009.41458053,0.00017021,2]
[350948363,1738231845726,-1200.0,0.0001707,2]
[350948365,1738231845735,-151.0,0.0001707,2]
[350948367,1738231845744,-667.034,0.0001707,2]
[350948369,1738231845753,-151.0,0.000171,2]
[350948370,1738231845762,-165.916798,0.00017123,2]
[350948372,1738231845771,-503.35919055,0.00017123,2]
[350948374,1738231845780,-500.0,0.00017123,2]
[350948375,1738231845789,-500.0,0.00017123,2]
[350948376,1738231845798,-500.0,0.00017123,2]
[350948377,1738231845809,-500.0,0.00017123,2]
[350948378,1738231845819,-500.0,0.00017123,2]
[350948379,1738231845831,-500.0,0.00017123,2]
[350948380,1738231845841,-302.36961841,0.00017123,2]
[350948381,1738231845850,-647.76,0.00017123,2]
[350948382,1738231845860,-500.0,0.00017123,2]
[350948383,1738231845871,-200.35217132,0.00017123,2]
[350948384,1738231845884,-500.0,0.00017123,2]
[350948385,1738231845901,-500.0,0.00017123,2]
[350948386,1738231845911,-500.0,0.00017123,2]
[350948387,1738231845921,-500.0,0.00017123,2]
[350948388,1738231845931,-836.07,0.00017123,2]
[350948389,1738231845940,-500.0,0.00017123,2]
[350948390,1738231845950,-500.0,0.00017123,2]
[350948391,1738231845959,-500.0,0.00017123,2]
[350948392,1738231845969,-500.0,0.00017123,2]
[350948393,1738231845978,-500.0,0.00017123,2]
[350948394,1738231845988,-500.0,0.00017123,2]
[350948395,1738231845997,-994.48,0.00017123,2]
[350948396,1738231846007,-500.0,0.00017123,2]
[350948397,1738231846017,-500.0,0.00017123,2]
[350948398,1738231846026,-500.0,0.00017123,2]
[350948399,1738231846035,-751.06,0.00017123,2]
[350948400,1738231846047,-500.0,0.00017123,2]
[350948401,1738231846057,-500.0,0.00017123,2]
[350948402,1738231846067,-500.0,0.00017123,2]
[350948403,1738231846077,-500.0,0.00017123,2]
[350948404,1738231846086,-500.0,0.00017123,2]
[350948405,1738231846096,-1377.99,0.00017123,2]
[350948406,1738231846105,-500.0,0.00017123,2]
[350948407,1738231846115,-500.0,0.00017123,2]
[350948408,1738231846125,-633.36,0.00017123,2]
[350948409,1738231846135,-619.8,0.00017123,2]
[350948410,1738231846144,-500.0,0.00017123,2]
[350948411,1738231846153,-500.0,0.00017123,2]
[350948412,1738231846163,-500.0,0.00017123,2]
[350948413,1738231846172,-1852.67,0.00017123,2]
[350948414,1738231846182,-720.48,0.00017123,2]
[350948415,1738231846192,-500.0,0.00017123,2]
[350948416,1738231846201,-500.0,0.00017123,2]
[350948417,1738231846211,-500.0,0.00017123,2]
[350948418,1738231846220,-500.0,0.00017123,2]
[350948419,1738231846229,-547.19,0.00017123,2]
[350948420,1738231846239,-7043.98,0.00017123,2]
[350948421,1738231846248,-500.0,0.00017123,2]
[350948422,1738231846258,-588.46,0.00017123,2]
[350948423,1738231846267,-1065.8504763,0.00017166,2]
[350948424,1738231846277,-22588.85893931,0.00017223,2]
[350948425,1738231846287,-500.0,0.0001726,2]
[350948426,1738231846296,-500.0,0.0001726,2]
[350948427,1738231846306,-500.0,0.0001726,2]
[350948428,1738231846315,-500.0,0.0001726,2]
[350948429,1738231846324,-331.72,0.0001726,2]
[350948430,1738231846333,-500.0,0.0001726,2]
[350948431,1738231846344,-500.0,0.0001726,2]
[350948432,1738231846354,-500.0,0.0001726,2]
[350948433,1738231846363,-500.0,0.0001726,2]
[350948434,1738231846374,-836.07,0.0001726,2]
[350948435,1738231846383,-500.0,0.0001726,2]
[350948436,1738231846392,-500.0,0.0001726,2]
[350948437,1738231846402,-500.0,0.0001726,2]
[350948438,1738231846412,-500.0,0.0001726,2]
[350948439,1738231846421,-150.06,0.0001726,2]
[350948440,1738231846430,-500.0,0.0001726,2]
[350948441,1738231846439,-150.37447202,0.0001726,2]
[350948442,1738231846449,-500.0,0.0001726,2]
[350948443,1738231846458,-150.85875784,0.0001726,2]
[350948444,1738231846468,-994.48,0.0001726,2]
[350948445,1738231846477,-150.06,0.0001726,2]